fUST/lending_fUST_20260423
["ID","MTS","AMOUNT","RATE_DAILY","PERIOD"]
[420998684,1776888632602,-500.0,0.00014573,2]
[420998685,1776888632612,-500.0,0.00014573,2]
[420998686,1776888632621,-500.0,0.00014573,2]
[420998687,1776888632631,-414.96699726,0.00014596,2]
[420998688,1776888632641,-491.53253711,0.00014596,2]
[420998689,1776888632650,-500.0,0.00014596,2]
[420998690,1776888632660,-500.0,0.00014596,2]
[420998691,1776888632670,-500.0,0.00014596,2]
[420998692,1776888632680,-500.0,0.00014596,2]
[420998693,1776888632690,-500.0,0.00014596,2]
[420998694,1776888632700,-500.0,0.00014596,2]
[420998695,1776888632710,-500.0,0.00014596,2]
[420998696,1776888632720,-500.0,0.00014596,2]
[420998697,1776888632730,-233.40334766,0.00014596,2]
[420998698,1776888632740,-500.0,0.00014596,2]
[420998699,1776888632750,-500.0,0.00014596,2]
[420998700,1776888632760,-500.0,0.00014596,2]
[420998701,1776888632770,-500.0,0.00014596,2]
[420998702,1776888632780,-500.0,0.00014596,2]
[420998703,1776888632790,-500.0,0.00014596,2]
[420998704,1776888632800,-500.0,0.00014596,2]
[420998705,1776888632810,-500.0,0.00014596,2]
[420998706,1776888632820,-500.0,0.00014596,2]
[420998707,1776888632830,-600.0,0.00014596,2]
[420998708,1776888632841,-500.0,0.00014596,2]
[420998709,1776888632851,-500.0,0.00014596,2]
[420998710,1776888632861,-500.0,0.00014596,2]
[420998711,1776888632871,-500.0,0.00014596,2]
[420998712,1776888632881,-500.0,0.00014596,2]
[420998713,1776888632891,-500.0,0.00014596,2]
[420998714,1776888632901,-500.0,0.00014596,2]
[420998715,1776888632911,-500.0,0.00014596,2]
[420998716,1776888632921,-366.05624481,0.00014596,2]
[420998717,1776888632930,-56122.92579772,0.00014597,2]
[420998782,1776888640788,-310.35409388,0.00014597,2]
[420998783,1776888640842,-1219.91665635,0.00014597,2]
[420998797,1776888643744,-7697.73596071,0.00014597,2]
[420998808,1776888645994,-756.81431939,0.00014597,2]
[420998809,1776888646009,-1151.94213673,0.00014597,2]
[420998812,1776888646606,-360356.58645316,0.00014597,2]
[420998813,1776888646660,-12535.50549113,0.00014597,2]
[420998814,1776888646672,-842.0,0.00014597,2]
[420998815,1776888715809,710.92253436,0.00024658,120]
[420998878,1776889602131,-198.07500678,0.00012671,2]
[420998879,1776889602154,-193.17449104,0.00013381,2]
[420998880,1776889602175,-1000.0,0.00013699,2]
[420998881,1776889602197,-455.7675055,0.00014028,2]
[420998882,1776889602218,-166.66666668,0.00014036,2]
[420998883,1776889602240,-269.72657935,0.00014056,2]
[420998884,1776889602261,-1077.82741107,0.00014056,2]
[420998885,1776889602282,-214.7568649,0.00014597,2]
[420998886,1776889602305,-1568.39011028,0.00014597,2]
[420998961,1776889832473,-18349.34481982,0.00014597,2]
[420998963,1776889832483,-151.0,0.000146,2]
[420998965,1776889832493,-151.0,0.000146,2]
[420998967,1776889832502,-151.0,0.000146,2]
[420998969,1776889832512,-151.0,0.000146,2]
[420998971,1776889832521,-151.0,0.000146,2]
[420998973,1776889832531,-151.0,0.000146,2]
[420998975,1776889832541,-500.0,0.00014673,2]
[420998977,1776889832550,-279.67518925,0.00014698,2]
[420998979,1776889832560,-297720.10959896,0.00014698,2]
[420999060,1776889838746,-3495.8960503,0.00014698,2]
[420999061,1776889838757,-1343.77689505,0.00014698,2]
[420999094,1776889844048,-2306.10864061,0.00014698,2]
[420999111,1776889846868,-250.0,0.00014551,2]
[420999112,1776889925599,-284.65640362,0.00013699,2]
[420999113,1776889925612,-715.34359638,0.00013699,2]
[420999118,1776890809144,-3902.7660276,0.00012514,2]
[420999196,1776891032607,-3709.39879811,0.00012021,2]
[420999199,1776891032617,-5000.0,0.00012142,2]
[420999202,1776891032626,-2159.82079884,0.00012265,2]
[420999207,1776891032662,-52.85629249,0.00012265,2]
[420999209,1776891032671,-300.0,0.00012388,2]
[420999211,1776891032681,-287.0,0.00012388,2]
[420999213,1776891032693,-16.58412209,0.00012704,2]
[420999268,1776891038802,-1359.0,0.00011901,2]
[420999288,1776891041025,-568.38586177,0.00011901,2]
[420999291,1776891041081,-442.58507751,0.00011901,2]
[420999292,1776891041136,-259.66012321,0.00011901,2]
[420999293,1776891041146,-133.41587791,0.00012704,2]
[420999294,1776891041155,-1000.0,0.00013699,2]
[420999295,1776891041164,-638.0,0.00014297,2]
[420999296,1776891041173,-1678.32279699,0.00014298,2]
[420999306,1776891043814,-842.2447535,0.00014298,2]
[420999307,1776891043860,-114.48574169,0.00014298,2]
[420999308,1776891043884,-505.45714202,0.00014298,2]
[420999309,1776891043894,-73.62075244,0.00014373,2]
[420999315,1776891046817,-426.37924756,0.00014373,2]
[420999316,1776891046826,-590.8229903,0.00014373,2]
[420999317,1776891046836,-500.0,0.00014373,2]
[420999318,1776891046845,-500.0,0.00014373,2]
[420999319,1776891046854,-500.0,0.00014373,2]
[420999320,1776891046864,-500.0,0.00014373,2]
[420999321,1776891046873,-37396.93153461,0.00014398,2]
[420999322,1776891047029,-15082.21699798,0.00014398,2]
[420999323,1776891047040,-20189.08937966,0.00014398,2]
[420999359,1776891822927,280.0,0.00024658,120]
[420999392,1776891990099,-1003.44975964,0.00012897,2]
[420999393,1776891990123,-435.75029056,0.00013027,2]
[420999467,1776892238171,-4564.24970944,0.00012995,2]
[420999468,1776892238181,-150.0,0.00013126,2]
[420999469,1776892238190,-200.0,0.00013309,2]
[420999470,1776892238200,-200.0,0.00013309,7]
[420999471,1776892238210,-1000.0,0.00013699,2]
[420999472,1776892238220,-1200.0,0.00014026,2]
[420999473,1776892238229,-3155.0,0.00014027,2]
[420999474,1776892238239,-500.0,0.00014098,2]
[420999475,1776892238248,-500.0,0.00014098,2]
[420999476,1776892238258,-500.0,0.00014098,2]
[420999477,1776892238268,-500.0,0.00014098,2]
[420999478,1776892238277,-500.0,0.00014098,2]
[420999479,1776892238287,-629.63666258,0.00014098,2]
[420999480,1776892238296,-19266.23334972,0.00014098,2]
[420999526,1776892240320,-4241.0464872,0.00014098,2]
[420999527,1776892240330,-500.0,0.00014173,2]
[420999528,1776892240340,-500.0,0.00014173,2]
[420999529,1776892240349,-270.29835349,0.00014173,2]
[420999530,1776892240358,-500.0,0.00014173,2]
[420999531,1776892240367,-503.54666915,0.00014173,2]
[420999532,1776892240377,-500.0,0.00014173,2]
[420999533,1776892240387,-500.0,0.00014173,2]
[420999534,1776892240396,-500.0,0.00014173,2]
[420999535,1776892240406,-500.0,0.00014173,2]
[420999536,1776892240417,-500.0,0.00014173,2]
[420999537,1776892240426,-292.78,0.00014197,2]
[420999538,1776892240436,-25345.09902161,0.00014198,2]
[420999539,1776892240448,-643.78105749,0.00014198,2]
[420999556,1776892243054,-7470.39449217,0.00014198,2]
[420999557,1776892243085,-1647.63087952,0.00014198,2]
[420999564,1776892246104,-6000.0,0.00014198,2]
[420999565,1776892246159,-67624.54527232,0.00014198,2]
[420999717,1776892999752,500.0,0.00024658,120]
[420999718,1776893039356,500.0,0.00024658,120]
[420999733,1776893123125,837.116,0.00024658,120]
[420999734,1776893146167,500.0,0.00024658,120]
[420999736,1776893199137,-3358.80158581,0.00012514,10]
[420999741,1776893353082,-595.47082767,0.00012389,10]
[420999742,1776893353103,-150.0,0.00012452,2]
[420999743,1776893353124,-1641.19841419,0.00012514,10]
[420999744,1776893353142,-292.62038006,0.00013174,2]
[420999745,1776893353161,-1010.76276967,0.00013174,2]
[420999749,1776893432281,-5000.0,0.00013042,2]
[420999750,1776893432291,-158.54826906,0.00013174,2]
[420999751,1776893432301,-1000.0,0.00013699,2]
[420999752,1776893432312,-219.48702911,0.00013898,2]
[420999753,1776893432337,-598.03811208,0.00013898,2]
[420999974,1776893438215,-2008.93424959,0.00013898,2]
[420999975,1776893438224,-767.06858498,0.000139,2]
[420999976,1776893438234,-346.98635033,0.000139,2]
[420999977,1776893438243,-568.92989515,0.000139,2]
[420999978,1776893438253,-500.0,0.00013973,2]
[420999979,1776893438262,-228.60282577,0.00013973,2]
[420999980,1776893438272,-500.0,0.00013973,2]
[420999981,1776893438281,-508.42731575,0.00013973,2]
[420999982,1776893438290,-500.0,0.00013973,2]
[420999983,1776893438299,-500.0,0.00013997,2]
[420999984,1776893438308,-500.0,0.00013997,2]
[420999985,1776893438317,-500.0,0.00013997,2]
[420999986,1776893438327,-500.0,0.00013997,2]
[420999987,1776893438336,-500.0,0.00013997,2]
[420999988,1776893438346,-500.0,0.00013997,2]
[420999989,1776893438355,-500.0,0.00013997,2]
[420999990,1776893438364,-500.0,0.00013997,2]
[420999991,1776893438374,-252.16015,0.00013997,2]
[420999992,1776893438383,-500.0,0.00013997,2]
[420999993,1776893438392,-500.0,0.00013997,2]
[420999994,1776893438401,-406.16979265,0.00013997,2]
[420999995,1776893438411,-500.0,0.00013997,2]
[420999996,1776893438420,-500.0,0.00013997,2]
[420999997,1776893438429,-500.0,0.00013997,2]
[420999998,1776893438438,-500.0,0.00013997,2]
[420999999,1776893438447,-306.23937137,0.00013997,2]
[421000000,1776893438456,-500.0,0.00013997,2]
[421000001,1776893438465,-500.0,0.00013997,2]
[421000002,1776893438474,-500.0,0.00013997,2]
[421000003,1776893438483,-500.0,0.00013997,2]
[421000004,1776893438493,-500.0,0.00013997,2]
[421000005,1776893438502,-500.0,0.00013997,2]
[421000006,1776893438511,-500.0,0.00013997,2]
[421000007,1776893438521,-500.0,0.00013997,2]
[421000008,1776893438530,-500.0,0.00013997,2]
[421000009,1776893438539,-623.83341637,0.00013997,2]
[421000010,1776893438548,-500.0,0.00013997,2]
[421000011,1776893438557,-500.0,0.00013997,2]
[421000012,1776893438567,-500.0,0.00013997,2]
[421000013,1776893438576,-500.0,0.00013997,2]
[421000014,1776893438585,-192.63087959,0.00013997,2]
[421000015,1776893438594,-500.0,0.00013997,2]
[421000016,1776893438603,-500.0,0.00013997,2]
[421000017,1776893438613,-500.0,0.00013997,2]
[421000018,1776893438622,-500.0,0.00013997,2]
[421000019,1776893438631,-48785.60574408,0.00013998,2]
[421000020,1776893438647,-242838.11720184,0.00013998,2]
[421000223,1776893446250,-4476.95,0.00013998,2]
[421000224,1776893446307,-2715.05918515,0.00013998,2]
[421000225,1776893446316,-151.0,0.00014,2]
[421000226,1776893446326,-151.0,0.00014,2]
[421000227,1776893446335,-151.0,0.00014,2]
[421000228,1776893446344,-151.0,0.00014,2]
[421000229,1776893446354,-151.0,0.00014,2]
[421000230,1776893446363,-151.0,0.00014,2]
[421000231,1776893446372,-151.0,0.00014,2]
[421000232,1776893446381,-151.0,0.00014,2]
[421000233,1776893446390,-151.0,0.00014,2]
[421000234,1776893446400,-151.0,0.00014,2]
[421000235,1776893446409,-500.0,0.00014,2]
[421000236,1776893446419,-151.0,0.00014,2]
[421000237,1776893446428,-537.6845,0.00014019,2]
[421000238,1776893446438,-151.0,0.00014019,2]
[421000239,1776893446447,-151.0,0.00014019,2]
[421000240,1776893446457,-151.0,0.00014019,2]
[421000241,1776893446466,-151.0,0.00014019,2]
[421000242,1776893446476,-151.0,0.00014019,2]
[421000243,1776893446485,-151.0,0.00014019,2]
[421000244,1776893446494,-151.0,0.00014019,2]
[421000245,1776893446504,-151.0,0.00014019,2]
[421000246,1776893446514,-151.0,0.00014019,2]
[421000247,1776893446524,-151.0,0.00014019,2]
[421000248,1776893446533,-151.0,0.00014019,2]
[421000249,1776893446543,-2150.738,0.00014019,2]
[421000250,1776893446552,-151.0,0.00014019,2]
[421000251,1776893446561,-151.0,0.00014019,2]
[421000252,1776893446571,-151.0,0.00014019,2]
[421000253,1776893446580,-151.0,0.00014019,2]
[421000254,1776893446590,-151.0,0.00014019,2]
[421000255,1776893446600,-151.0,0.00014019,2]
[421000256,1776893446609,-151.0,0.00014019,2]
[421000257,1776893446618,-151.0,0.00014019,2]
[421000258,1776893446628,-151.84430154,0.00014019,2]
[421000259,1776893446638,-500.00676066,0.00014073,2]
[421000260,1776893446647,-500.0,0.00014089,2]
[421000261,1776893446656,-500.0,0.00014095,2]
[421000262,1776893446666,-529.41050748,0.00014096,2]
[421000263,1776893446675,-515.39,0.00014096,2]
[421000264,1776893446685,-510.66,0.00014096,2]
[421000265,1776893446695,-500.0,0.00014096,2]
[421000266,1776893446704,-500.0,0.00014096,2]
[421000267,1776893446714,-500.0,0.00014097,2]
[421000268,1776893446723,-500.0,0.00014097,2]
[421000269,1776893446732,-500.0,0.00014097,2]
[421000270,1776893446742,-500.0,0.00014097,2]
[421000271,1776893446752,-500.0,0.00014097,2]
[421000272,1776893446762,-500.0,0.00014097,2]
[421000273,1776893446771,-500.0,0.00014097,2]
[421000274,1776893446780,-515.39,0.00014097,2]
[421000275,1776893446790,-515.39,0.00014097,2]
[421000276,1776893446800,-515.39,0.00014097,2]
[421000277,1776893446809,-515.39,0.00014097,2]
[421000278,1776893446818,-515.39,0.00014097,2]
[421000279,1776893446828,-515.39,0.00014097,2]
[421000280,1776893446837,-515.39,0.00014097,2]
[421000281,1776893446846,-515.39,0.00014097,2]
[421000282,1776893446855,-515.39,0.00014097,2]
[421000283,1776893446864,-515.39,0.00014097,2]
[421000284,1776893446873,-515.39,0.00014097,2]
[421000285,1776893446882,-515.39,0.00014097,2]
[421000286,1776893446891,-515.39,0.00014097,2]
[421000287,1776893446901,-515.39,0.00014097,2]
[421000288,1776893446910,-515.39,0.00014097,2]
[421000289,1776893446919,-515.39,0.00014097,2]
[421000290,1776893446928,-515.39,0.00014097,2]
[421000291,1776893446938,-515.39,0.00014097,2]
[421000292,1776893446947,-515.39,0.00014097,2]
[421000293,1776893446956,-515.39,0.00014097,2]
[421000294,1776893446965,-515.39,0.00014097,2]
[421000295,1776893446975,-515.39,0.00014097,2]
[421000296,1776893446984,-515.50686866,0.00014097,2]
[421000297,1776893446993,-277.47301,0.00014097,2]
[421000298,1776893447002,-181.652161,0.00014097,2]
[421000299,1776893447011,-277.47301,0.00014097,2]
[421000300,1776893447021,-181.652161,0.00014097,2]
[421000301,1776893447030,-277.47301,0.00014097,2]
[421000302,1776893447039,-181.652161,0.00014097,2]
[421000303,1776893447048,-277.47301,0.00014097,2]
[421000304,1776893447058,-181.652161,0.00014097,2]
[421000305,1776893447067,-1908.338011,0.00014097,2]
[421000306,1776893447076,-1908.338011,0.00014097,2]
[421000307,1776893447085,-1908.338011,0.00014097,2]
[421000308,1776893447095,-1908.338011,0.00014097,2]
[421000309,1776893447104,-500.0,0.00014097,2]
[421000310,1776893447113,-500.0,0.00014097,2]
[421000311,1776893447122,-500.0,0.00014097,2]
[421000312,1776893447131,-500.0,0.00014097,2]
[421000313,1776893447140,-500.0,0.00014097,2]
[421000314,1776893447149,-500.0,0.00014097,2]
[421000315,1776893447158,-500.0,0.00014097,2]
[421000316,1776893447167,-271.65189019,0.00014097,2]
[421000317,1776893447177,-500.0,0.00014097,2]
[421000318,1776893447186,-500.0,0.00014097,2]
[421000319,1776893447195,-500.0,0.00014097,2]
[421000320,1776893447205,-500.0,0.00014097,2]
[421000322,1776893447214,-500.0,0.00014097,2]
[421000324,1776893447223,-500.0,0.00014097,2]
[421000326,1776893447232,-500.0,0.00014097,2]
[421000328,1776893447241,-500.0,0.00014097,2]
[421000330,1776893447250,-449.608031,0.00014097,2]
[421000331,1776893447259,-151.0,0.00014097,2]
[421000332,1776893447268,-151.0,0.00014097,2]
[421000333,1776893447277,-1494.705406,0.00014097,2]
[421000334,1776893447286,-1494.705406,0.00014097,2]
[421000335,1776893447295,-1494.705406,0.00014097,2]
[421000336,1776893447305,-1494.705406,0.00014097,2]
[421000337,1776893447315,-506.870384,0.00014097,2]
[421000338,1776893447324,-506.870384,0.00014097,2]
[421000340,1776893447333,-500.0,0.00014097,2]
[421000341,1776893447342,-500.0,0.00014097,2]
[421000343,1776893447351,-374.39627474,0.00014097,2]
[421000345,1776893447360,-151.0,0.00014097,2]
[421000347,1776893447370,-506.870384,0.00014097,2]
[421000348,1776893447379,-506.870384,0.00014097,2]
[421000349,1776893447388,-300.0,0.00014097,2]
[421000350,1776893447397,-300.0,0.00014097,2]
[421000352,1776893447406,-300.0,0.00014097,2]
[421000354,1776893447415,-300.0,0.00014097,2]
[421000356,1776893447424,-359.606449,0.00014097,2]
[421000358,1776893447433,-359.606449,0.00014097,2]
[421000360,1776893447445,-359.606449,0.00014097,2]
[421000362,1776893447454,-359.606449,0.00014097,2]
[421000364,1776893447463,-1404.111159,0.00014097,2]
[421000366,1776893447472,-1404.111159,0.00014097,2]
[421000368,1776893447482,-1404.111159,0.00014097,2]
[421000370,1776893447491,-1404.111159,0.00014097,2]
[421000372,1776893447500,-151.0,0.00014097,2]
[421000374,1776893447509,-151.0,0.00014097,2]
[421000376,1776893447518,-151.0,0.00014097,2]
[421000378,1776893447527,-151.0,0.00014097,2]
[421000380,1776893447536,-488.458659,0.00014097,2]
[421000382,1776893447546,-610.548496,0.00014097,2]
[421000384,1776893447555,-488.458659,0.00014097,2]
[421000385,1776893447564,-610.548496,0.00014097,2]
[421000387,1776893447572,-610.548496,0.00014097,2]
[421000389,1776893447582,-488.458659,0.00014097,2]
[421000391,1776893447591,-610.548496,0.00014097,2]
[421000393,1776893447600,-488.458659,0.00014097,2]
[421000395,1776893447609,-333.96033,0.00014097,2]
[421000397,1776893447619,-333.96033,0.00014097,2]
[421000399,1776893447628,-333.96033,0.00014097,2]
[421000401,1776893447637,-333.96033,0.00014097,2]
[421000403,1776893447646,-151.0,0.00014097,2]
[421000405,1776893447655,-151.0,0.00014097,2]
[421000407,1776893447664,-151.0,0.00014097,2]
[421000409,1776893447673,-151.0,0.00014097,2]
[421000411,1776893447682,-151.0,0.00014097,2]
[421000413,1776893447691,-151.0,0.00014097,2]
[421000415,1776893447700,-151.0,0.00014097,2]
[421000417,1776893447709,-151.0,0.00014097,2]
[421000419,1776893447719,-249.897713,0.00014097,2]
[421000421,1776893447728,-151.0,0.00014097,2]
[421000423,1776893447738,-151.0,0.00014097,2]
[421000425,1776893447747,-151.0,0.00014097,2]
[421000426,1776893447756,-151.0,0.00014097,2]
[421000428,1776893447765,-3979.988983,0.00014097,2]
[421000430,1776893447775,-3979.988983,0.00014097,2]
[421000432,1776893447784,-3979.988983,0.00014097,2]
[421000434,1776893447793,-3979.988983,0.00014097,2]
[421000436,1776893447803,-300.0,0.00014097,2]
[421000439,1776893447814,-300.0,0.00014097,2]
[421000441,1776893447824,-3979.988983,0.00014097,2]
[421000443,1776893447834,-3979.988983,0.00014097,2]
[421000445,1776893447843,-300.0,0.00014097,2]
[421000447,1776893447852,-9226.555314,0.00014097,2]
[421000449,1776893447862,-300.0,0.00014097,2]
[421000451,1776893447871,-9226.555314,0.00014097,2]
[421000453,1776893447880,-3979.988983,0.00014097,2]
[421000455,1776893447890,-3979.988983,0.00014097,2]
[421000457,1776893447899,-300.0,0.00014097,2]
[421000459,1776893447908,-9226.555314,0.00014097,2]
[421000460,1776893447918,-300.0,0.00014097,2]
[421000462,1776893447927,-9226.555314,0.00014097,2]
[421000464,1776893447937,-300.0,0.00014097,2]
[421000466,1776893447946,-9226.555314,0.00014097,2]
[421000468,1776893447955,-300.0,0.00014097,2]
[421000470,1776893447966,-9226.555314,0.00014097,2]
[421000472,1776893447975,-160.234405,0.00014097,2]
[421000474,1776893447984,-181.30222,0.00014098,2]
[421000476,1776893447993,-181.30222,0.00014098,2]
[421000478,1776893448002,-181.30222,0.00014098,2]
[421000480,1776893448012,-181.30222,0.00014098,2]
[421000483,1776893448021,-151.0,0.000141,2]
[421000485,1776893448031,-151.0,0.000141,2]
[421000486,1776893448040,-151.0,0.000141,2]
[421000488,1776893448050,-151.0,0.000141,2]
[421000490,1776893448059,-151.0,0.000141,2]
[421000492,1776893448068,-151.0,0.000141,2]
[421000494,1776893448077,-151.0,0.000141,2]
[421000496,1776893448087,-151.0,0.000141,2]
[421000498,1776893448096,-151.0,0.000141,2]
[421000500,1776893448105,-151.0,0.000141,2]
[421000502,1776893448114,-941.661281,0.00014165,2]
[421000503,1776893448123,-300.0,0.00014177,2]
[421000504,1776893448132,-300.0,0.00014177,2]
[421000505,1776893448141,-300.0,0.00014177,2]
[421000506,1776893448150,-300.0,0.00014177,2]
[421000507,1776893448160,-151.0,0.000142,2]
[421000508,1776893448169,-151.0,0.000142,2]
[421000509,1776893448178,-1404.111159,0.00014202,2]
[421000510,1776893448187,-1404.111159,0.00014202,2]
[421000511,1776893448195,-1404.111159,0.00014202,2]
[421000512,1776893448204,-1404.111159,0.00014202,2]
[421000513,1776893448213,-610.548496,0.00014202,2]
[421000514,1776893448222,-610.548496,0.00014202,2]
[421000515,1776893448231,-610.548496,0.00014202,2]
[421000516,1776893448240,-610.548496,0.00014202,2]
[421000517,1776893448249,-333.96033,0.00014202,2]
[421000518,1776893448258,-333.96033,0.00014202,2]
[421000519,1776893448267,-333.96033,0.00014202,2]
[421000520,1776893448276,-333.96033,0.00014202,2]
[421000521,1776893448285,-151.0,0.00014202,2]
[421000522,1776893448295,-151.0,0.00014202,2]
[421000523,1776893448306,-151.0,0.00014202,2]
[421000524,1776893448315,-151.0,0.00014202,2]
[421000525,1776893448324,-151.0,0.00014202,2]
[421000526,1776893448333,-151.0,0.00014202,2]
[421000527,1776893448343,-151.0,0.00014202,2]
[421000528,1776893448352,-151.0,0.00014202,2]
[421000529,1776893448361,-321.962971,0.00014202,2]
[421000530,1776893448370,-500.0,0.0001421,2]
[421000531,1776893448380,-4788.147064,0.00014211,2]
[421000532,1776893448390,-1002.2866005,0.00014211,2]
[421000533,1776893448400,-4270.4214331,0.00014211,2]
[421000534,1776893448410,-1932.8117846,0.00014211,2]
[421000535,1776893448419,-151.0,0.00014211,2]
[421000536,1776893448429,-151.0,0.00014211,2]
[421000537,1776893448438,-151.0,0.00014211,2]
[421000538,1776893448447,-239.85289,0.00014211,2]
[421000539,1776893448456,-151.0,0.00014211,2]
[421000540,1776893448466,-151.0,0.00014211,2]
[421000541,1776893448475,-151.0,0.00014211,2]
[421000542,1776893448484,-2812.0575966,0.00014211,2]
[421000543,1776893448494,-151.0,0.00014211,2]
[421000544,1776893448504,-5000.0,0.00014211,2]
[421000545,1776893448749,-3937.041837,0.00014211,2]
[421000546,1776893448759,-277.47301,0.00014211,2]
[421000547,1776893448768,-277.47301,0.00014211,2]
[421000548,1776893448778,-181.652161,0.00014211,2]
[421000549,1776893448787,-181.652161,0.00014211,2]
[421000550,1776893448797,-277.47301,0.00014211,2]
[421000551,1776893448806,-277.47301,0.00014211,2]
[421000552,1776893448815,-181.652161,0.00014211,2]
[421000553,1776893448824,-181.652161,0.00014211,2]
[421000554,1776893448834,-277.47301,0.00014211,2]
[421000555,1776893448843,-277.47301,0.00014211,2]
[421000556,1776893448852,-181.652161,0.00014211,2]
[421000557,1776893448861,-181.652161,0.00014211,2]
[421000558,1776893448870,-277.47301,0.00014211,2]
[421000559,1776893448879,-277.47301,0.00014211,2]
[421000560,1776893448888,-181.652161,0.00014211,2]
[421000561,1776893448897,-181.652161,0.00014211,2]
[421000562,1776893448907,-162.96431,0.00014211,2]
[421000563,1776893448915,-162.96431,0.00014211,2]
[421000564,1776893448925,-162.96431,0.00014211,2]
[421000565,1776893448934,-162.96431,0.00014211,2]
[421000566,1776893448943,-1908.338011,0.00014211,2]
[421000567,1776893448951,-1908.338011,0.00014211,2]
[421000568,1776893448961,-1908.338011,0.00014211,2]
[421000569,1776893448970,-1908.338011,0.00014211,2]
[421000570,1776893448979,-1908.338011,0.00014211,2]
[421000571,1776893448988,-1908.338011,0.00014211,2]
[421000572,1776893448997,-1908.338011,0.00014211,2]
[421000573,1776893449007,-1908.338011,0.00014211,2]
[421000574,1776893449016,-151.0,0.00014211,2]
[421000575,1776893449026,-153.578403,0.00014211,2]
[421000576,1776893449035,-1494.705406,0.00014211,2]
[421000577,1776893449044,-1494.705406,0.00014211,2]
[421000578,1776893449053,-1494.705406,0.00014211,2]
[421000579,1776893449063,-1494.705406,0.00014211,2]
[421000580,1776893449071,-1494.705406,0.00014211,2]
[421000581,1776893449080,-1494.705406,0.00014211,2]
[421000582,1776893449089,-1494.705406,0.00014211,2]
[421000583,1776893449099,-1494.705406,0.00014211,2]
[421000584,1776893449108,-1494.705406,0.00014211,2]
[421000585,1776893449117,-1494.705406,0.00014211,2]
[421000586,1776893449127,-1494.705406,0.00014211,2]
[421000587,1776893449136,-1494.705406,0.00014211,2]
[421000588,1776893449146,-506.870384,0.00014211,2]
[421000589,1776893449155,-506.870384,0.00014211,2]
[421000590,1776893449165,-506.870384,0.00014211,2]
[421000591,1776893449174,-506.870384,0.00014211,2]
[421000592,1776893449183,-506.870384,0.00014211,2]
[421000593,1776893449192,-506.870384,0.00014211,2]
[421000594,1776893449201,-151.0,0.00014211,2]
[421000595,1776893449210,-506.870384,0.00014211,2]
[421000596,1776893449219,-208.688012,0.00014211,2]
[421000597,1776893449229,-506.870384,0.00014211,2]
[421000598,1776893449238,-506.870384,0.00014211,2]
[421000599,1776893449247,-506.870384,0.00014211,2]
[421000600,1776893449256,-506.870384,0.00014211,2]
[421000601,1776893449265,-506.870384,0.00014211,2]
[421000602,1776893449274,-300.0,0.00014211,2]
[421000603,1776893449283,-300.0,0.00014211,2]
[421000604,1776893449292,-300.0,0.00014211,2]
[421000605,1776893449301,-300.0,0.00014211,2]
[421000606,1776893449311,-300.0,0.00014211,2]
[421000607,1776893449320,-300.0,0.00014211,2]
[421000608,1776893449329,-300.0,0.00014211,2]
[421000609,1776893449339,-300.0,0.00014211,2]
[421000610,1776893449348,-300.0,0.00014211,2]
[421000611,1776893449358,-300.0,0.00014211,2]
[421000612,1776893449367,-300.0,0.00014211,2]